Cogmind - Beta 15 @@@ ROGUE MODE // 2025.06.07 @ 23:25:20 Player: shockman27 Result: Destroyed by G-47 Trooper with Particle Gun Performance ------------- Evolutions (0) 0 Regions Visited (2) 400 Robots Destroyed (42) 210 Value Destroyed (785) 785 Prototype IDs (2) 40 Alien Tech Used (0) 0 Bonus (0) 0 TOTAL SCORE: 1435 Bonus ------- None Cogmind --------- Core Integrity 0/250 Matter 286/300 Energy 239/250 System Corruption 0% Temperature Cool (63) Movement Walking (190) Ox1 Location -10/Mines Parts ------- > --- POWER (1) -------- Ion Engine > --- PROPULSION (2) --- Aluminum Leg Aluminum Leg > --- UTILITY (2) ------ Large Storage Unit Seismic Detector > --- WEAPON (2) ------- Medium Laser Light Assault Rifle > --- INVENTORY (15) --- Light Treads Wheel Wheel Wheel Improved Heat Sink High-capacity Storage Unit Large Matter Pod (150) Sensor Array Signal Interpreter ECM Suite Light Cannon Datajack Mining Laser Peak State ------------ > --- POWER ------------ Ion Engine > --- PROPULSION ------- Aluminum Leg Aluminum Leg > --- UTILITY ---------- Improved Heat Sink High-capacity Storage Unit > --- WEAPON ----------- Medium Laser Light Assault Rifle > --- INVENTORY -------- Light Treads Wheel Wheel Wheel Large Storage Unit Large Matter Pod Sensor Array Signal Interpreter ECM Suite Light Cannon Datajack Mining Laser [Rating: 10] Favorites ----------- Power Ion Engine Engine Ion Engine Propulsion Light Treads Treads Light Treads Leg Aluminum Leg Wheel Wheel Utility Seismic Detector Device Seismic Detector Storage High-capacity Storage Unit Weapon Medium Laser Energy Gun Medium Laser Ballistic Gun Light Assault Rifle Special Weapon Mining Laser Build | -11 -10 -10 ------- Run | Yrd Mat Min Slots Evolved . | . . . Power . | . . . Propulsion . | . . . Utility . | . . . Weapon . | . . . Parts Attached 25 | 9 10 6 Power 5 | 1 3 1 Engine 5 | 1 3 1 Core . | . . . Reactor . | . . . Propulsion 7 | 3 2 2 Treads 2 | . 2 . Leg 2 | . . 2 Wheel 3 | 3 . . Hover . | . . . Flight . | . . . Utility 8 | 2 4 2 Device 4 | 1 1 2 Storage 4 | 1 3 . Processor . | . . . Hackware . | . . . Protection . | . . . Artifact . | . . . Weapon 5 | 3 1 1 Energy Gun 2 | 2 . . Energy Cannon . | . . . Ballistic Gun 2 | 1 . 1 Ballistic Cannon . | . . . Launcher . | . . . Special Weapon 1 | . 1 . Impact Weapon . | . . . Slashing Weapon . | . . . Piercing Weapon . | . . . Special Melee Weapon . | . . . Unidentified Prototypes . | . . . Parts Lost 8 | . 3 5 Power 2 | . 1 1 Propulsion 3 | . 1 2 Utility 1 | . . 1 Weapon 2 | . 1 1 Highest Loss Streak 5 | . 3 5 To Critical Strikes . | . . . Average Backups 10 | 4 10 12 Power . | . . . Propulsion 3 | 2 3 4 Utility 3 | . 3 5 Weapon 1 | . 1 2 Tool/Special . | . . . Unused Backups 11 | . 2 9 Power . | . . . Propulsion 4 | . 1 3 Utility 5 | . 1 4 Weapon 1 | . . 1 Tool/Special 1 | . . 1 Average Slot Usage (%) 98 | . 99 95 Engine 13 | . 14 12 Treads 18 | . 22 1 Leg 4 | . . 24 Wheel 4 | . 5 . Device 13 | . 14 12 Storage 14 | . 14 14 Energy Gun 23 | . 25 14 Ballistic Gun 4 | . 2 13 Peak Build Rating 10 | 7 8 10 Average Rating 7 | 5 7 9 On Entrance 5 | . 7 8 Naked Turns . | . . . Heaviest Build 90 | 15 90 49 Greatest Support 40 | 26 40 40 Greatest Overweight (x) 14 | 4 4 14 Average Overweight (x) 1 | . 1 1 Largest Inventory Capacity 25 | 8 25 20 Average Capacity 18 | 7 19 16 Most Carried 14 | 8 14 14 Average Carried 10 | 4 10 12 Final Capacity 20 | 8 20 15 Final Carried 14 | 8 14 13 Class Distribution -------------------- 83% | Mutant 16% | Scavenger-Mutant Dominant Class ---------------- Mutant | -10/Materials Scavenger-Mutant | -10/Mines Resources | -11 -10 -10 ----------- Run | Yrd Mat Min Matter Collected 752 | 317 376 59 Remotely . | . . . Salvage Created 1183 | 160 824 199 Parts 82 | 11 58 13 Haulers Intercepted 2 | . 2 . Recyclers Shooed 2 | 1 1 . Parts Field Recycled . | . . . Retrieved Matter . | . . . Parts Self-Destructed . | . . . Prevented . | . . . Kills | -11 -10 -10 ------- Run | Yrd Mat Min Combat Hostiles Destroyed 23 | . 20 3 Guns 22 | . 19 3 AOE 1 | . 1 . Classes Destroyed 9 | 2 6 1 Worker 3 | . 3 . Builder 1 | . . 1 Tunneler 6 | 4 . 2 Hauler 2 | . 2 . Recycler 2 | 1 1 . Operator 2 | . 2 . Watcher 3 | . 3 . Swarmer 8 | . 8 . Grunt 15 | . 12 3 Best Kill Streak 7 | 3 7 2 Combat Bots Only 6 | . 6 2 Max Kills in Single Turn 2 | 1 2 1 Gunslinging . | . . . Exploded 1 | . 1 . Melee . | . . . Uniques/NPCs Destroyed . | . . . Combat | -11 -10 -10 -------- Run | Yrd Mat Min Hostile Shots Fired 142 | . 110 32 Missed 34 | . 28 6 Hits 108 | . 82 26 Projectile 108 | . 82 26 Critical Strikes 1 | . 1 . Damage Taken 1233 | . 893 340 Core 263 | . 172 91 Absorbed by Shields . | . . . Core Remaining (%) 100 | 100 . . Volleys Fired 129 | 9 98 22 Largest 2 | 2 2 2 Hottest 100 | 70 100 90 Shots Fired 242 | 18 180 44 Gun 236 | 18 174 44 Cannon . | . . . Launcher . | . . . Special 6 | . 6 . Kinetic 56 | 9 27 20 Thermal 186 | 9 153 24 Explosive . | . . . Electromagnetic . | . . . Robot Hit Streak 19 | 9 19 9 Robot Miss Streak 4 | 1 4 2 Penetration Max . | . . . Secondary Targets 1 | . . 1 Max Gunslinging Chain 1 | . . 1 Shots Hit Robots 153 | 12 110 31 Core Hits 65 | 6 47 12 Critical Kills . | . . . Critical Parts Destroyed . | . . . Critical Strikes 7 | . 6 1 Burn 7 | . 6 1 Melee Attacks . | . . . Impact . | . . . Slashing . | . . . Piercing . | . . . Sneak Attacks . | . . . Combat Hostiles . | . . . Follow-up Attacks . | . . . Damage Inflicted 1977 | 170 1467 340 Guns 1977 | 170 1467 340 Cannons . | . . . Explosions . | . . . Melee . | . . . Ramming . | . . . Kinetic 420 | 82 200 138 Thermal 1557 | 88 1267 202 Explosive . | . . . Electromagnetic . | . . . Impact . | . . . Slashing . | . . . Piercing . | . . . Highest Corruption . | . . . Average Corruption . | . . . Corruption Purged . | . . . Corruption Blocked . | . . . Overload Shots . | . . . Overflow Damage . | . . . Projectiles . | . . . Explosions . | . . . Melee . | . . . Knockbacks . | . . . Impact . | . . . Kinetic . | . . . Secondary . | . . . Self-Inflicted Damage . | . . . Shots . | . . . Rammed . | . . . Targets Rammed . | . . . Kicked . | . . . Crushed . | . . . Highest Temperature 276 | 27 276 246 Average Temperature 70 | 9 69 101 Received Heat Transfer 444 | . 255 189 Siege Activations . | . . . Martial Activations . | . . . Shielding Activations . | . . . Robots Disrupted . | . . . Combat Hostiles . | . . . Robots Corrupted . | . . . Combat Hostiles . | . . . Parts Fried . | . . . Impact Corruptions . | . . . Robots Melted . | . . . Combat Hostiles . | . . . Parts Melted 10 | . 10 . Heat Transferred 4673 | 259 3760 654 Parts Sabotaged . | . . . Parts Stolen . | . . . Parts Stripped . | . . . Power Chain Reactions . | . . . Alert | -11 -10 -10 ------- Run | Yrd Mat Min Maximum Alert Level . | . . . Low Security (%) 100 | 100 100 100 Level 1 . | . . . Level 2 . | . . . Level 3 . | . . . Level 4 . | . . . Level 5 . | . . . High Security . | . . . Max Security . | . . . Peak Influence 144 | 5 144 40 Initial 36 | . 3 36 Average 24 | . 30 4 Influence Increases 834 | 25 724 85 Destroy 0b10 Robot/C 460 | . 400 60 Destroy 0b10 Robot/NC 95 | 25 55 15 Destroy Leader 90 | . 80 10 Successful Hack 35 | . 35 . Select Force Hacks 60 | . 60 . Disable Machine 15 | . 15 . Destroy Structure 4 | . 4 . Lose Combat Pursuer 75 | . 75 . Influence Decreases 812 | 20 634 158 Entered New Map 61 | . 2 59 Time Decay 538 | 20 459 59 Lost Part 70 | . 30 40 Purge Threat 143 | . 143 . Squads Dispatched 4 | . 4 . Investigation 3 | . 3 . Extermination . | . . . Reinforcement 1 | . 1 . Assault . | . . . Garrison . | . . . Intercept . | . . . Searches Triggered . | . . . Construction Impeded . | . . . Haulers Reinforced . | . . . Active Scanning Responses . | . . . Cargo Convoy Interrupts . | . . . Stealth | -11 -10 -10 --------- Run | Yrd Mat Min Distress Signals 3 | . 3 . Communications Jammed . | . . . Distress Signals . | . . . Times Spotted 38 | . 34 4 Peak Tracking Total 4 | . 4 2 Tactical Retreats 4 | . 4 . Traps | -11 -10 -10 ------- Run | Yrd Mat Min Traps Triggered . | . . . Indirectly . | . . . Trap Hack Attempts . | . . . Triggered . | . . . Disarmed . | . . . Reprogrammed . | . . . Reused . | . . . Traps Extracted . | . . . Installed . | . . . Triggered . | . . . Machines | -11 -10 -10 ---------- Run | Yrd Mat Min Machines Disabled 1 | . 1 . Max in Single Turn 1 | . 1 . Machines Repaired . | . . . Machines Dismantled . | . . . Machines Sabotaged . | . . . Overloaded Fab Kills . | . . . Hacking | -11 -10 -10 --------- Run | Yrd Mat Min Machines Accessed 8 | . 8 . Terminals 6 | . 6 . Fabricators . | . . . Repair Stations . | . . . Recycling Units 2 | . 2 . Scanalyzers . | . . . Garrison Access . | . . . Total Hacks 28 | . 28 . Successful 19 | . 19 . Failed 8 | . 8 . Catastrophic 1 | . 1 . Database Lockouts 1 | . 1 . Manual 19 | . 19 . Terminals 23 | . 23 . Fabricators . | . . . Repair Stations . | . . . Recycling Units 5 | . 5 . Scanalyzers . | . . . Garrison Access . | . . . Terminal Hacks 11 | . 11 . Robot Analysis 2 | . 2 . Prototype ID Bank 1 | . 1 . Branch Access Points 1 | . 1 . Emergency Access Points 1 | . 1 . Alert Level 2 | . 2 . Unreport Threat 1 | . 1 . Locate Traps 2 | . 2 . Zone Layout 1 | . 1 . Fabricator Hacks . | . . . Repair Station Hacks . | . . . Recycling Unit Hacks . | . . . Scanalyzer . | . . . Garrison Access Hacks . | . . . Unauthorized Hacks 8 | . 8 . Terminals 6 | . 6 . Assimilate 1 | . 1 . Botnet 4 | . 4 . Operators 1 | . 1 . Fabricators . | . . . Repair Stations . | . . . Recycling Units 2 | . 2 . Tunnel 2 | . 2 . Scanalyzers . | . . . Garrison Access . | . . . Data Cores Recovered 1 | . 1 . Used 1 | . 1 . Hacking Detections 7 | . 7 . Full Trace Events 1 | . 1 . Feedback Events . | . . . Feedback Blocked . | . . . Robot Schematics Acquired . | . . . Robots Built . | . . . Authchips . | . . . Time . | . . . Total Robot Build Rating . | . . . Part Schematics Acquired . | . . . Parts Built . | . . . Authchips . | . . . Time . | . . . Total Part Build Rating . | . . . Parts Repaired . | . . . Time . | . . . Parts Recycled . | . . . Recycled Matter . | . . . Retrieved Matter . | . . . Retrieved Components . | . . . Parts Scanalyzed . | . . . Part Schematics Acquired . | . . . Parts Damaged . | . . . Bothacking | -11 -10 -10 ------------ Run | Yrd Mat Min Used RIF Installer . | . . . Robots Hacked . | . . . Non-combat . | . . . Combat . | . . . Robot Hacks Applied . | . . . Relay Couplers Released . | . . . Fabnet Peak Effective % . | . . . Robots Rewired . | . . . Allies Hacked . | . . . Hacks Repelled . | . . . Allies | -11 -10 -10 -------- Run | Yrd Mat Min Total Allies . | . . . Largest Group . | . . . Highest-Rated Group . | . . . Highest-Rated Ally . | . . . Total Orders . | . . . Ally Attacks . | . . . Total Damage . | . . . Kills . | . . . Allies Corrupted . | . . . Allies Melted . | . . . Intel | -11 -10 -10 ------- Run | Yrd Mat Min Active Infowar (turns) 2243 | 14 2181 48 Seismic 2243 | 14 2181 48 Robot Analysis Total 2 | . 2 . Derelict Logs Recovered 1 | . . 1 Drone Launches . | . . . Drone Recoveries . | . . . Exploration | -11 -10 -10 ------------- Run | Yrd Mat Min Turns Passed 2856 | 136 2181 539 Spaces Moved 1211 | 92 901 218 Core 19 | 17 . 2 Treads 660 | . 658 2 Legs 214 | . . 214 Wheels 318 | 75 243 . Hover . | . . . Flight . | . . . Fastest Speed 50 | 50 80 190 Average Speed 194 | 95 200 213 Slowest Speed 750 | 250 240 750 Overloaded Moves . | . . . Propulsion Burnouts . | . . . Robots Hopped . | . . . Potential Cave-ins . | . . . Cave-ins Triggered . | . . . Exploration Rate (%) 47 | 5 100 36 Regions Visited 2 Branch Regions 1 Pre-discovered Areas 2 | . 2 . Known Exits Taken 1 | . 1 . Unknown Exits Taken 1 | 1 . . Scrap Searched . | . . . Spaces Dug 4 | . 4 . Terrain Destroyed 4 | . 4 . Melee . | . . . Projectile 4 | . 4 . AOE . | . . . Terrain Rammed . | . . . Walls Destroyed . | . . . Machines Disabled . | . . . Actions | -11 -10 -10 --------- Run | Yrd Mat Min Total 1454 | 118 1085 251 Wait 54 | . 51 3 Move 1209 | 91 900 218 Hop . | . . . Pick Up 22 | 9 12 1 Fast Attach 8 | 5 . 3 Attach 7 | 2 3 2 Detach . | . . . Swap 17 | 2 13 2 Drop 8 | . 8 . Fire 129 | 9 98 22 Melee . | . . . Ram . | . . . Kick . | . . . Crush . | . . . Escape Stasis . | . . . Rewire . | . . . Trap . | . . . Miscellaneous . | . . . Route ------- -11/Scrapyard -10/Materials (discovered 5 exits: [*Mat x3] / *Min / [*Sub]) -10/Mines (discovered 1 exit: [*Sub]) History --------- Turn | Location | Event 22 | -11/Scrapyard | Discovered new exit (range 16) 137 | -11/Scrapyard | Entered Materials 186 | -10/Materials | Central database locked down 186 | -10/Materials | Identified exit to Mines 305 | -10/Materials | Build established: Mutant 590 | -10/Materials | Lost 3 parts (1p1n1w) 607 | -10/Materials | Core integrity fell below 50% 681 | -10/Materials | Discovered new exit (range 16) 835 | -10/Materials | Discovered new exit (range 14) 987 | -10/Materials | Discovered new exit (range 9) 1509 | -10/Materials | Discovered new exit (range 9) 2318 | -10/Materials | Entered Mines 2345 | -10/Mines | Core integrity fell below 20% 2380 | -10/Mines | Lost 5 parts (1p2n1u1w) 2611 | -10/Mines | Discovered new exit (range 7) 2671 | -10/Mines | Build established: Scavenger-Mutant 2857 | -10/Mines | Destroyed by G-47 Trooper with Particle Gun Last Messages --------------- 02607_ U-05 Engineer lays Concrete. 02611_ T-07 Excavator is excavating. 02611_ EXIT=FOUND 02612_ U-05 Engineer lays Concrete. 02648_ A derelict emerges from the shadows: "What are you doing alone down here?" 02650_ DP-0QJ(g): "Well, at least you look like you can take care of yourself!" 02652_ DP-0QJ(g): "I have the funny feeling that things are about to get a lot worse around here, see you around!" 02652_ DP-0QJ(g) slips back into the shadows. 02786_ T-07 Excavator suffers critical hit (Burn). 02786_ T-07 Excavator destroyed. 02796_ Acquired 23 matter. 02818_ T-07 Excavator destroyed. 02821_ U-05 Engineer destroyed. 02824_ Acquired 3 matter. 02830_ Acquired Seismic Detector. 02835_ Acquired Imp. Heat Sink. 02851_ G-34 Mercenary destroyed. Map ----- +----------------------------------------------------+ | | | | | | | | | | | | | | | | | | | ?????????????????????????????????????????????????? | | ?????????????????????????????????????????????????? | | ?????????????????????????????????????????????????? | | ????????????????????????????????????????????????## | | ???????????????????????????????????????????????## | | ?????????????????????????????????????###??????## | | ?????????????????????????????????????# ?##???# | | ?????????????????????????????????????# #